[Event "Marienbad Open 2020"]
[Site "Marianske Lazne"]
[Date "2020.01.22"]
[Round "6.16"]
[White "Laxman, R.R."]
[Black "Kolbus, Dietmar"]
[Result "1/2-1/2"]
[ECO "D02"]
[WhiteElo "2441"]
[BlackElo "2294"]
[Annotator "NA"]
[PlyCount "106"]
[EventDate "2020.01.18"]
[EventType "tourn"]
[EventCountry "CZE"]
[SourceTitle "playchess.com"]
[Source "ChessBase"]
[SourceQuality "1"]
[TimeControl "40/5400+30:1800+30"]

1. d4 {[%emt 0:01:21]} d5 {[%emt 0:00:00]} 2. Nf3 {[%emt 0:00:09]} c6 {[%emt 0:00:25]} 3. e3 {[%emt 0:00:39]} Bf5 {[%emt 0:00:28]} 4. Nh4 {[%emt 0:02:13]} Bc8 {[%emt 0:00:36]} 5. Nf3 {[%emt 0:02:25]} Bf5 {[%emt 0:00:10]} 6. Bd3 {[%emt 0:00:27]} Bxd3 {[%emt 0:00:08]} 7. cxd3 {[%emt 0:00:22]} Nf6 {[%emt 0:00:27]} 8. O-O {[%emt 0:00:58]} e6 {[%emt 0:00:26]} 9. Nc3 {[%emt 0:00:12]} Be7 {[%emt 0:00:35]} 10. Ne5 {[%emt 0:00:18]} O-O {[%emt 0:00:28]} 11. Bd2 {[%emt 0:00:23]} Nbd7 {[%emt 0:00:39]} 12. Rc1 {[%emt 0:01:29]} c5 {[%emt 0:10:25]} 13. Nxd7 {[%emt 0:00:48]} Qxd7 {[%emt 0:04:50]} 14. dxc5 {[%emt 0:04:05]} Bxc5 {[%emt 0:00:08]} 15. Na4 {[%emt 0:03:14]} Be7 {[%emt 0:00:56]} 16. Nc5 {[%emt 0:00:41]} Bxc5 {[%emt 0:00:19]} 17. Rxc5 {[%emt 0:00:02]} Rfc8 {[%emt 0:00:10]} 18. Rxc8+ {[%emt 0:00:23]} Rxc8 {[%emt 0:00:06]} 19. Bc3 {[%emt 0:00:14]} Qe7 {[%emt 0:08:02]} 20. Qa4 {[%emt 0:03:45]} a6 {[%emt 0:00:35]} 21. e4 {[%emt 0:02:23]} dxe4 {[%emt 0:03:02]} 22. dxe4 {[%emt 0:00:03]} Qd7 {[%emt 0:03:56]} 23. Qb4 {[%emt 0:02:01]} b5 {[%emt 0:00:42]} 24. f3 {[%emt 0:01:41]} Rc4 {[%emt 0:08:10]} 25. Qb3 {[%emt 0:00:44]} Qa7+ {[%emt 0:03:17]} 26. Kh1 {[%emt 0:00:32]} h6 {[%emt 0:04:14]} 27. Qd1 {[%emt 0:01:34]} Rc8 {[%emt 0:04:58]} 28. Qd6 {[%emt 0:01:07]} Ne8 {[%emt 0:00:39]} 29. Qd2 {[%emt 0:00:25]} f6 {[%emt 0:01:51]} 30. g3 {[%emt 0:03:26]} e5 {[%emt 0:13:38]} 31. Qd5+ {[%emt 0:05:22]} Qf7 {[%emt 0:00:37]} 32. Rd1 {[%emt 0:00:05]} Qxd5 {[%emt 0:00:49]} 33. Rxd5 {[%emt 0:00:11]} Rc6 {[%emt 0:02:38]} 34. Rd8 {[%emt 0:02:34]} Kf7 {[%emt 0:00:51]} 35. Rd7+ {[%emt 0:00:03]} Kg6 {[%emt 0:06:00]} 36. g4 {[%emt 0:00:55]} h5 {[%emt 0:00:57]} 37. Re7 {[%emt 0:00:07]} Rc8 {[%emt 0:00:32]} 38. h3 {[%emt 0:00:24]} hxg4 {[%emt 0:01:12]} 39. hxg4 {[%emt 0:00:27]} b4 {[%emt 0:13:06]} 40. Bxb4 {[%emt 0:00:13]} Rc1+ {[%emt 0:00:12]} 41. Kg2 {[%emt 0:30:05]} Rc2+ {[%emt 0:30:06]} 42. Kg3 {[%emt 0:01:10]} Rxb2 {[%emt 0:00:16]} 43. a3 {[%emt 0:00:10]} a5 {[%emt 0:00:27]} 44. Bxa5 {[%emt 0:00:02]} Nd6 {[%emt 0:00:36]} 45. Rc7 {[%emt 0:02:11]} Nf7 {[%emt 0:03:24]} 46. Bc3 {[%emt 0:05:12]} Ra2 {[%emt 0:00:27]} 47. Bb4 {[%emt 0:00:20]} Ng5 {[%emt 0:00:25]} 48. Rd7 {[%emt 0:00:25]} Rb2 {[%emt 0:01:24]} 49. Rd3 {[%emt 0:00:16]} Ne6 {[%emt 0:00:52]} 50. Bd2 {[%emt 0:00:21]} Ra2 {[%emt 0:04:17]} 51. Be3 {[%emt 0:00:14]} Kf7 {[%emt 0:00:00]} 52. Rd7+ {[%emt 0:00:00]} Ke8 {[%emt 0:00:00]} 53. Rd3 {[%emt 0:00:00]} Ra1 1/2-1/2